{"text_format":"1","workbook":"xlsx","n_sheets":2,"sheets":["Commande","Listes"],"not_rendered":{"charts":0,"images":0,"macros":1,"external_links":0,"defined_names":5,"comments":0,"pivot_tables":0},"unopened":[],"bounds":{"document_bytes":16777216,"sheet_cells":100000,"rows_first":2000,"rows_last":500,"rows_between":2000,"halvings":0,"cell_chars":16384,"cell_head_chars":4096},"cells_cut":0,"cells_raw":0,"read":"whole","date_system":"1900"}

{"sheet":"Commande","index":0,"n_rows":44,"n_cols":13,"rows_kept":44,"cut":false,"hidden":false,"merged":[[17,5,17,6],[1,5,1,6],[0,1,0,3],[1,1,1,3],[2,1,2,3],[3,1,3,3],[4,1,4,3],[5,1,5,3]]}
[null,null,null,null,"COMMANDE D'ACHAT",null,null,null,null,null,null,1,{"$f":"L1","v":1}]
[null,null,null,null,"Date:",{"$f":"TODAY()","v":"2015-07-16"},null,null,null,null,null,null,"facture "]
[null,null,null,null,"# Commande :",null,{"$f":"L1","v":1}]
[]
[]
[]
[]
["Fournisseur"]
["Adresse: "]
["Ville:"]
["Tel:"]
["Fax:"]
["# Client: "]
[]
[]
[]
[]
["Code ","Désignation produit","Qté","Format","Prix","Total "]
[null,null,null,null,null,null,{"$f":"C19*E19","v":0}]
[null,null,null,null,null,null,{"$f":"C20*E20","v":0}]
[null,null,null,null,null,null,0]
[null,null,null,null,null,null,0]
[null,null,null,null,null,null,0]
[null,null,null,null,null,null,0]
[null,null,null,null,null,null,0]
[null,null,null,null,null,null,0]
[null,null,null,null,null,null,0]
[null,null,null,null,null,null,0]
[null,null,null,null,null,null,0]
[null,null,null,null,null,null,0]
[null,null,null,null,null,null,0]
[null,null,null,null,null,null,0]
[null,null,null,null,null,null,0]
[null,null,null,null,null,null,0]
[null,null,null,null,null,null,0]
[null,null,null,null,null,null,0]
[null,null,null,null,null,null,0]
[null,null,null,null,null,null,0]
[null,null,null,null,null,null,0]
[null,null,null,null,null,null,0]
[null,null,null,null,null,null,0]
[null,null,null,null,null,null,0]
[null,null,null,null,null,null,0]
[null,null,null,null,null,null,0]

{"sheet":"Listes","index":1,"n_rows":47,"n_cols":43,"rows_kept":47,"cut":false,"hidden":false,"merged":[]}
["AGROPUR","DIVISION.NATREL","ALIMENTS.ARLA","ALLARD","BOUCHERIE.LES.HALLES","BOUVILLONS.BELLERIVE","CADRIN","CANARD.GOULU","COLABOR","DAMAFRO","DÉLICES.DE.LA.FORÊT","DISTRIBUTION.FRIGON","DISTRIBUTIONS.ROY","EMBALLAGES.CARROUSEL","EMBALLAGES.L.BOUCHER","ETIQUETTES.UNIK","FINES.HERBES.DANIEL","HECTOR.LARIVÉE","IMPORTATIONS.AROMA","IMPORTATIONS.OLÉA","MAISON.DU.GIBIER","MAISON.DU.LIÈVRE","MAISON.GOURMET","NADOR","NORAMPAC","PACKALL PACKAGING INC.","PAPILLOTE","PÂTES.À.TOUT","PÂTISSERIE.ANNA.PIERROT","PÊCHERIES.NORREF","PRAXAIR","PRODUITS.CAPITAL","RUDOLPH","SALERNO","SAPUTO","SAQ","SÉLECTION.BERARC","SERVICES G.K (QUÉBEC)","TOOTSI.IMPEX","VIANDES.BIOLOGIQUES.DE.CHARLEVOIX","VIANDES.LAROCHE","VIANDEX","WORLÉE.INTERNATIONAL"]
["JARSLBERG ","CRÈME 10% 15 ML ","PARMESAN REGIANO RAPÉ ","AIL PELÉ"]
["BRIE LE MANOIR ","2% ULTRA LAIT 15 ML","FONTINA MEULE DANOIS ","ASPERGE MORCEAUX"]
["RICOTTA HOMO 15%","CRÈME 35% 10 LITRE BEC VERSEUR","BOCCONCINI PERLES","BASILIC "]
["RICOTTA 73%","BEURRE 25 KG SALÉ BLOC","PARMESAN RÂPÉ  TRE STELLE ","BEBE ARAGULA"]
["TOFU BIO REGULIER FERME","LAIT HOMO 3%","GRUYERE SUISSE (2.5KG)","BEBE EPINARD"]
["STILTON AIC ","BEURRE 454 G DOUX",null,"BROCOLI"]
[null,"CRÈME SURE 14% 2 LITRES",null,"CAROTTE JUMBO"]
[null,null,null,"CHAMPIGNON HRI"]
[null,null,null,"CHAMPIGNONS PORTOBELLA"]
[null,null,null,"CHOU ROUGE"]
[null,null,null,"CHOU SAVOIE"]
[null,null,null,"CIBOULETTE"]
[null,null,null,"CITRON "]
[null,null,null,"ECHALOTE SECHE"]
[null,null,null,"ECHALOTE VERTE"]
[null,null,null,"ESTRAGON"]
[null,null,null,"GINGEMBRE"]
[null,null,null,"JUS ORANGE SP OASIS"]
[null,null,null,"LIME"]
[null,null,null,"MELANGE SOLEIL LEVANT"]
[null,null,null,"MELON D'EAU"]
[null,null,null,"MENTHE "]
[null,null,null,"MINI TOMATES"]
[null,null,null,"OIGNON PELÉ"]
[null,null,null,"OIGNONS ROUGES"]
[null,null,null,"ORANGE"]
[null,null,null,"OREGANO"]
[null,null,null,"PATATE GRELOT ROUGE"]
[null,null,null,"PATATE MCX RESTO DELICE "]
[null,null,null,"PATATE SUCRÉ"]
[null,null,null,"PERSIL"]
[null,null,null,"PERSIL ITALIEN"]
[null,null,null,"PIMENT ROUGE"]
[null,null,null,"PIMENT ROUGE CUBE CONG"]
[null,null,null,"PIMENT VERT CUBE"]
[null,null,null,"PLEUROTTE"]
[null,null,null,"POIS VERTS PAULA"]
[null,null,null,"POUSSE DE RADIS CHINOIS"]
[null,null,null,"POUSSE TATSOI "]
[null,null,null,"ROMARIN "]
[null,null,null,"SIROP ERABLE"]
[null,null,null,"THYM"]
[null,null,null,"TOMATES  ST-LAURENT"]
[null,null,null,"TOMATES ITALIENNES "]
[null,null,null,"YUKON GOLD SPECIAL"]
[null,null,null,"ZUCCHINI VERT"]